bitfinex/quotes_BTCUSD_20241018
["timestamp","ask_amount","ask_price","bid_price","bid_amount"]
[1729224988068,0.003656,67712.0,67711.0,0.7946606]
[1729224991227,0.003656,67712.0,67711.0,0.79429806]
[1729224991693,0.003656,67712.0,67711.0,0.86051788]
[1729224991919,0.003656,67712.0,67711.0,0.88259116]
[1729224993368,0.003656,67712.0,67711.0,0.88306095]
[1729224993598,0.003656,67712.0,67711.0,0.79476784]
[1729224998039,0.003656,67712.0,67711.0,0.88307589]
[1729225001247,0.003656,67712.0,67711.0,0.79476784]
[1729225001924,0.003656,67712.0,67711.0,0.6790955]
[1729225002356,0.003656,67712.0,67711.0,0.79476784]
[1729225003502,0.003656,67712.0,67711.0,0.90513094]
[1729225005440,0.003656,67712.0,67711.0,0.79436339]
[1729225006076,0.003656,67712.0,67711.0,0.67669105]
[1729225006309,0.003656,67712.0,67711.0,0.69316271]
[1729225006540,0.101556,67712.0,67711.0,0.55910878]
[1729225006763,0.183456,67712.0,67711.0,0.24386007]
[1729225007246,0.183456,67712.0,67711.0,0.22986007]
[1729225007694,0.183456,67712.0,67711.0,0.24386007]
[1729225007920,0.183456,67712.0,67711.0,0.39281922]
[1729225008139,0.101556,67712.0,67711.0,0.36481922]
[1729225008407,0.003656,67712.0,67711.0,0.49957841]
[1729225008623,0.003656,67712.0,67711.0,0.63199157]
[1729225008838,0.003656,67712.0,67711.0,0.54357841]
[1729225009050,0.003656,67712.0,67711.0,0.52957841]
[1729225009477,0.003656,67712.0,67711.0,0.63200959]
[1729225009721,0.003656,67712.0,67711.0,0.73200959]
[1729225009942,0.003656,67712.0,67711.0,0.49281921]
[1729225010167,0.003656,67712.0,67711.0,0.75201307]
[1729225010379,0.003656,67712.0,67711.0,0.76801307]
[1729225010800,0.003656,67712.0,67711.0,0.73192041]
[1729225011243,0.003656,67712.0,67711.0,0.65747349]
[1729225011473,0.003656,67712.0,67711.0,0.6690037]
[1729225012309,0.003656,67712.0,67711.0,0.77954328]
[1729225013363,0.003656,67712.0,67711.0,0.6690037]
[1729225013599,0.180256,67712.0,67711.0,0.62747349]
[1729225013810,0.180256,67712.0,67711.0,0.24386006]
[1729225014258,0.180256,67712.0,67711.0,0.19767708]
[1729225017023,0.180256,67712.0,67711.0,0.19267708]
[1729225017967,0.180256,67712.0,67711.0,0.17867708]
[1729225018183,0.180256,67712.0,67711.0,0.18367708]
[1729225018916,0.181256,67712.0,67711.0,0.16467708]
[1729225019138,0.181256,67712.0,67711.0,0.16967708]
[1729225019345,0.181256,67712.0,67711.0,0.17067708]
[1729225020216,0.181256,67712.0,67711.0,0.16567708]
[1729225020706,0.181256,67712.0,67711.0,0.17067708]
[1729225021203,0.181256,67712.0,67711.0,0.16567708]
[1729225021916,0.181256,67712.0,67711.0,0.17067708]
[1729225023040,0.181256,67712.0,67711.0,0.16567708]
[1729225025077,0.181256,67712.0,67711.0,0.17067708]
[1729225025521,0.181256,67712.0,67711.0,0.16567708]
[1729225031652,0.186256,67712.0,67711.0,0.01799108]
[1729225031892,0.186256,67712.0,67711.0,0.00128271]
[1729225032319,0.181256,67712.0,67711.0,0.14896871]
[1729225032742,0.181256,67712.0,67711.0,0.16623023]
[1729225038645,0.181256,67712.0,67711.0,0.01854423]
[1729225039303,0.32894,67712.0,67711.0,0.01854423]
[1729225039717,0.32894,67712.0,67711.0,0.00128271]
[1729225040355,0.33394,67712.0,67711.0,0.00128271]
[1729225042371,0.186256,67712.0,67711.0,0.01855861]
[1729225042580,0.186256,67712.0,67711.0,0.00128271]
[1729225042806,0.186256,67712.0,67711.0,0.01855861]
[1729225043015,0.186256,67712.0,67711.0,0.00128271]
[1729225043237,0.186256,67712.0,67711.0,0.01855861]
[1729225044086,0.181256,67712.0,67711.0,0.16624461]
[1729225058986,0.181256,67712.0,67711.0,0.1662446]
[1729225059942,0.181256,67712.0,67711.0,0.0185586]
[1729225061330,0.181256,67712.0,67711.0,0.1662446]
[1729225062268,0.32894,67712.0,67711.0,0.0185586]
[1729225062506,0.32894,67712.0,67711.0,0.0012827]
[1729225062754,0.32894,67712.0,67711.0,0.01857401]
[1729225063004,0.181256,67712.0,67711.0,0.0012827]
[1729225063246,0.181256,67712.0,67711.0,0.01857723]
[1729225072404,0.181256,67712.0,67711.0,0.16626323]
[1729225083077,0.004656,67712.0,67711.0,0.16626323]
[1729225083336,0.004656,67712.0,67711.0,0.28193557]
[1729225084004,0.003656,67712.0,67711.0,0.29430016]
[1729225084224,0.003656,67712.0,67711.0,0.29930016]
[1729225084456,0.004656,67712.0,67711.0,0.43884823]
[1729225084683,0.004656,67712.0,67711.0,0.80859993]
[1729225084899,0.003656,67712.0,67711.0,0.89723339]
[1729225085110,0.003656,67712.0,67711.0,0.80859993]
[1729225085321,0.003656,67712.0,67711.0,0.81059993]
[1729225085541,0.003656,67712.0,67711.0,0.74243368]
[1729225085782,0.003656,67712.0,67711.0,0.87363428]
[1729225086023,0.003656,67712.0,67711.0,0.74560118]
[1729225086286,0.003656,67712.0,67711.0,0.73807292]
[1729225086507,0.003656,67712.0,67711.0,0.8749519]
[1729225086718,0.003656,67712.0,67711.0,1.05019429]
[1729225086936,0.003656,67712.0,67711.0,1.07574501]
[1729225087158,0.003656,67712.0,67711.0,1.2226952]
[1729225087372,0.003656,67712.0,67711.0,1.08974501]
[1729225087588,0.003656,67712.0,67711.0,0.96007267]
[1729225088023,0.003656,67712.0,67711.0,0.97407267]
[1729225088244,0.003656,67712.0,67711.0,1.07574501]
[1729225088478,0.003656,67712.0,67711.0,1.06174501]
[1729225088686,0.003656,67712.0,67711.0,1.07574501]
[1729225089123,0.003656,67712.0,67711.0,1.08974501]
[1729225089566,0.003656,67712.0,67711.0,0.92565459]
[1729225089785,0.003656,67712.0,67711.0,0.80074984]
[1729225089995,0.003656,67712.0,67711.0,0.64176722]
[1729225090218,0.003656,67712.0,67711.0,0.58355809]
[1729225090433,0.003656,67712.0,67711.0,0.55140984]
[1729225090708,0.000656,67718.0,67717.0,0.152673]
[1729225090931,0.000656,67718.0,67717.0,0.15295569]
[1729225091407,0.000656,67718.0,67717.0,0.17008359]
[1729225091619,0.000656,67718.0,67717.0,0.16508359]
[1729225091841,0.000656,67718.0,67717.0,0.17008359]
[1729225092294,0.000656,67718.0,67717.0,0.39239638]
[1729225092295,0.002656,67718.0,67717.0,0.39239638]
[1729225092539,0.002656,67718.0,67717.0,0.31904274]
[1729225093427,0.000656,67718.0,67717.0,0.31904274]
[1729225093896,0.002656,67718.0,67717.0,0.31904274]
[1729225094770,0.000656,67718.0,67717.0,0.32204274]
[1729225095035,0.000656,67718.0,67717.0,0.40334274]
[1729225095464,0.00042781,67718.0,67717.0,0.31904274]
[1729225095682,0.00042781,67718.0,67717.0,0.32204274]
[1729225096130,0.00042781,67718.0,67717.0,0.31904274]
[1729225096357,0.00042781,67718.0,67717.0,0.33304274]
[1729225096802,0.00042781,67718.0,67717.0,0.34704274]
[1729225097301,0.00042781,67718.0,67717.0,0.33304274]
[1729225097952,0.00042781,67718.0,67717.0,0.34704274]
[1729225098172,0.00042781,67718.0,67717.0,0.31404274]
[1729225098442,0.00042781,67718.0,67717.0,0.44371508]
[1729225098652,0.00042781,67718.0,67717.0,0.57338742]
[1729225099112,0.00042781,67718.0,67717.0,0.45771508]
[1729225099827,0.00042781,67718.0,67717.0,0.45854308]
[1729225100057,0.00208381,67718.0,67717.0,0.44454308]
[1729225100490,0.00208381,67718.0,67717.0,0.45854308]
[1729225100943,0.00208381,67718.0,67717.0,0.43054308]
[1729225101152,0.00208381,67718.0,67717.0,0.44454308]
[1729225101366,0.00208381,67718.0,67717.0,0.45854308]
[1729225101799,0.00208381,67718.0,67717.0,0.44454308]
[1729225102016,0.00208381,67718.0,67717.0,0.43054308]
[1729225102259,0.00208381,67718.0,67717.0,0.45854308]
[1729225106661,0.00208381,67718.0,67717.0,0.45854307]
[1729225114542,0.00208381,67718.0,67717.0,0.5045914]
[1729225114967,0.00208381,67718.0,67717.0,0.45854307]
[1729225115909,0.00208381,67718.0,67717.0,0.50460936]
[1729225116165,0.00208381,67718.0,67717.0,0.45854307]
[1729225116410,0.00208381,67718.0,67717.0,0.50460939]
[1729225125245,0.00208381,67718.0,67717.0,0.54879445]
[1729225125713,0.00208381,67718.0,67717.0,0.50460939]
[1729225126435,0.00208381,67718.0,67717.0,0.5488427]
[1729225127529,0.00208381,67718.0,67717.0,0.50460939]
[1729225127747,0.00208381,67718.0,67717.0,0.57088698]
[1729225127958,0.00208381,67718.0,67717.0,0.70643168]
[1729225128163,0.00208381,67718.0,67717.0,0.57088698]
[1729225128387,0.00208381,67718.0,67717.0,0.72858517]
[1729225128597,0.00208381,67718.0,67717.0,0.64021505]
[1729225129719,0.00208381,67718.0,67717.0,0.72858517]
[1729225130148,0.00208381,67718.0,67717.0,0.72858516]
[1729225130569,0.00208381,67718.0,67717.0,0.64021504]
[1729225132490,0.00208381,67718.0,67717.0,0.75067769]
[1729225137516,0.00208381,67718.0,67717.0,0.64021504]
[1729225138154,0.00208381,67718.0,67717.0,0.75099766]
[1729225138359,0.00208381,67718.0,67717.0,0.64021504]
[1729225139797,0.00208381,67718.0,67717.0,0.64035806]
[1729225142969,0.00208381,67718.0,67717.0,0.64048222]
[1729225145125,0.00208381,67718.0,67717.0,1.07846735]
[1729225145352,0.00208381,67718.0,67717.0,1.07125456]
[1729225146268,0.00208381,67718.0,67717.0,1.05725456]
[1729225146741,0.00208381,67718.0,67717.0,1.04325456]
[1729225147013,0.00208381,67718.0,67717.0,1.05525456]
[1729225147243,0.00208381,67718.0,67717.0,1.18816928]
[1729225147459,0.00208381,67718.0,67717.0,1.17416928]
[1729225147710,0.00208381,67718.0,67717.0,1.20206235]
[1729225148142,0.00208381,67718.0,67717.0,1.18806235]
[1729225148378,0.00208381,67718.0,67717.0,0.79061767]
[1729225148614,0.00208381,67718.0,67717.0,0.75037648]
[1729225148841,0.00208381,67718.0,67717.0,0.86104882]
[1729225158690,0.00208381,67718.0,67717.0,0.86304882]
[1729225158929,0.00208381,67718.0,67717.0,0.86104882]
[1729225161794,0.00208381,67718.0,67717.0,0.85604882]
[1729225162033,0.00208381,67718.0,67717.0,0.86074451]
[1729225164164,0.00208381,67718.0,67717.0,0.86069436]
[1729225166796,0.00208381,67718.0,67717.0,0.86073463]
[1729225168883,0.00208381,67718.0,67717.0,0.74006229]
[1729225169121,0.00208381,67718.0,67717.0,0.62438995]
[1729225169337,0.07928381,67718.0,67717.0,0.85079706]
[1729225169553,0.07928381,67718.0,67717.0,0.74006229]
[1729225170656,0.07928381,67718.0,67717.0,0.85079706]
[1729225171331,0.00208381,67718.0,67717.0,0.85079706]
[1729225179522,0.00208381,67718.0,67717.0,0.64006229]
[1729225180982,0.00208381,67718.0,67717.0,0.75079706]
[1729225182420,0.00208381,67718.0,67717.0,0.64006229]
[1729225182655,0.00208381,67718.0,67717.0,0.75079706]
[1729225186617,0.00208381,67718.0,67717.0,0.64006229]
[1729225186841,0.00208381,67718.0,67717.0,0.75079706]
[1729225187056,0.00208381,67718.0,67717.0,0.64006229]
[1729225187718,0.00208381,67718.0,67717.0,0.75079706]
[1729225188162,0.00208381,67718.0,67717.0,0.64006229]
[1729225190515,0.00208381,67718.0,67717.0,0.75079706]
[1729225190764,0.00208381,67718.0,67717.0,0.75131043]
[1729225190987,0.00208381,67718.0,67717.0,0.64057101]
[1729225193584,0.00208381,67718.0,67717.0,0.75131043]
[1729225193736,0.00208381,67718.0,67717.0,0.64057101]
[1729225196211,0.00208381,67718.0,67717.0,0.64073505]
[1729225200415,0.00208381,67718.0,67717.0,0.64084586]
[1729225200841,0.00208381,67718.0,67717.0,0.75159361]
[1729225201024,0.00208381,67718.0,67717.0,0.64084586]
[1729225201511,0.00208381,67718.0,67717.0,0.7565182]
[1729225201728,0.00208381,67718.0,67717.0,0.86726595]
[1729225203097,0.00208381,67718.0,67717.0,0.75159361]
[1729225203365,0.00208381,67718.0,67717.0,1.0659182]
[1729225203575,0.082256,67735.0,67733.0,0.26831034]
[1729225203825,0.001656,67735.0,67734.0,0.34766147]
[1729225204035,0.001656,67735.0,67734.0,0.34712275]
[1729225204255,0.001656,67735.0,67734.0,0.43571275]
[1729225204470,0.001656,67735.0,67734.0,0.34712275]
[1729225204686,0.001656,67735.0,67734.0,0.43571275]
[1729225204917,0.001656,67735.0,67734.0,0.34712275]
[1729225205129,0.001656,67735.0,67734.0,0.45786025]
[1729225205349,0.001656,67735.0,67734.0,0.43562491]
[1729225205558,0.001656,67735.0,67734.0,0.34712275]
[1729225205776,0.001656,67735.0,67734.0,0.43562491]
[1729225206023,0.001656,67735.0,67734.0,0.44712275]
[1729225206324,0.001656,67735.0,67734.0,0.60308189]
[1729225206505,0.001656,67735.0,67734.0,0.6595469]
[1729225206751,0.001656,67735.0,67734.0,0.6455469]
[1729225207173,0.001656,67735.0,67734.0,0.6755469]
[1729225207390,0.001656,67735.0,67734.0,0.77007285]
[1729225207597,0.001656,67735.0,67734.0,0.77455931]
[1729225207815,0.001656,67735.0,67734.0,0.83453336]
[1729225208027,0.001656,67735.0,67734.0,0.83453335]
[1729225208465,0.001656,67735.0,67734.0,0.82253335]
[1729225208671,0.001656,67735.0,67734.0,0.93301332]
[1729225208860,0.001656,67735.0,67734.0,0.94701332]
[1729225209121,0.001656,67735.0,67734.0,0.83653335]
[1729225209554,0.001656,67735.0,67734.0,0.85053334]
[1729225209781,0.001656,67735.0,67734.0,0.83653334]
[1729225210204,0.001656,67735.0,67734.0,0.83453334]
[1729225210425,0.001656,67735.0,67734.0,0.93292867]
[1729225210691,0.001656,67735.0,67734.0,0.83653334]
[1729225210920,0.001654,67738.0,67734.0,0.83653334]
[1729225210921,0.001654,67752.0,67751.0,0.37327134]
[1729225211143,0.001654,67752.0,67751.0,0.52267716]
[1729225211361,0.001654,67752.0,67751.0,0.53386599]
[1729225212893,0.001654,67752.0,67751.0,0.54786599]
[1729225213121,0.001654,67752.0,67751.0,0.54786598]
[1729225213344,0.001654,67752.0,67751.0,0.54986598]
[1729225213566,0.001654,67752.0,67751.0,0.56386598]
[1729225213872,0.001654,67752.0,67751.0,0.56186598]
[1729225214676,0.001654,67752.0,67751.0,0.56386598]
[1729225214889,0.001654,67752.0,67751.0,0.56777298]
[1729225215756,0.001654,67752.0,67751.0,0.56777297]
[1729225216231,0.001654,67752.0,67751.0,0.58958427]
[1729225216431,0.001654,67752.0,67751.0,0.60327745]
[1729225216660,0.001654,67752.0,67751.0,0.60127745]
[1729225217083,0.001654,67752.0,67751.0,0.60327745]
[1729225217282,0.001654,67752.0,67751.0,0.63127745]
[1729225218266,0.001654,67752.0,67751.0,0.62927745]
[1729225218480,0.001654,67752.0,67751.0,0.63427745]
[1729225218675,0.00162,67757.0,67756.0,0.152588]
[1729225218890,0.00162,67757.0,67756.0,0.51766612]
[1729225219094,0.00162,67757.0,67756.0,0.52877582]
[1729225220124,0.00162,67757.0,67756.0,0.54277582]
[1729225220760,0.07462,67763.0,67762.0,0.152575]
[1729225220977,0.07462,67763.0,67762.0,0.26869397]
[1729225221144,0.0953,67764.0,67763.0,0.152573]
[1729225221654,0.0953,67764.0,67763.0,0.16363027]
[1729225221847,0.0953,67764.0,67763.0,0.31258942]
[1729225222704,0.001656,67768.0,67765.0,0.152568]
[1729225222835,0.001656,67768.0,67765.0,0.26824034]
[1729225223037,0.001656,67768.0,67765.0,0.27928923]
[1729225224007,0.078156,67767.0,67765.0,0.27928923]
[1729225224199,0.078156,67767.0,67765.0,0.16361689]
[1729225224542,0.078156,67767.0,67765.0,0.16761689]
[1729225224878,0.078156,67767.0,67765.0,0.16861689]
[1729225225484,0.078156,67767.0,67765.0,0.43324838]
[1729225226279,0.001656,67767.0,67765.0,0.53324838]
[1729225226715,0.001656,67767.0,67765.0,0.53369499]
[1729225227135,0.001656,67767.0,67765.0,0.53369498]
[1729225231288,0.001656,67767.0,67765.0,0.53369497]
[1729225233408,0.001656,67767.0,67765.0,0.26906348]
[1729225233621,0.174656,67766.0,67765.0,0.26906348]
[1729225234042,0.174656,67766.0,67765.0,0.16906348]
[1729225234248,0.174656,67766.0,67765.0,0.16906347]
[1729225234871,0.174656,67766.0,67765.0,0.16806347]
[1729225235074,0.174656,67766.0,67765.0,0.17206347]
[1729225235685,0.174656,67766.0,67765.0,0.16406347]
[1729225236093,0.174656,67766.0,67765.0,0.16506347]
[1729225236295,0.174656,67766.0,67765.0,0.16406347]
[1729225236679,0.174656,67766.0,67765.0,0.16506347]
[1729225236932,0.174656,67766.0,67765.0,0.16706347]
[1729225242152,0.16877478,67766.0,67765.0,0.16706347]
[1729225242390,0.16877478,67766.0,67765.0,0.16706346]
[1729225243843,0.0927,67766.0,67765.0,0.16706346]
[1729225244341,0.0927,67766.0,67765.0,0.16506346]
[1729225244567,0.0927,67766.0,67765.0,0.21716178]
[1729225244791,0.0927,67766.0,67765.0,0.17106346]
[1729225245257,0.0927,67766.0,67765.0,0.21716171]
[1729225245497,0.0927,67766.0,67765.0,0.21616171]
[1729225245714,0.0927,67766.0,67765.0,0.22116171]
[1729225247714,0.0927,67766.0,67765.0,0.2211617]
[1729225250020,0.093528,67766.0,67765.0,0.2211617]
[1729225250667,0.093528,67766.0,67765.0,0.17506345]
[1729225251086,0.093528,67766.0,67765.0,0.22118726]
[1729225252201,0.000828,67766.0,67765.0,0.22118726]
[1729225252653,0.000828,67766.0,67765.0,0.22118725]
[1729225253716,0.000828,67766.0,67765.0,0.3701464]
[1729225255063,0.000828,67766.0,67765.0,0.3651464]
[1729225255276,0.000828,67766.0,67765.0,0.36514639]
[1729225255483,0.000828,67766.0,67765.0,0.42334286]
[1729225255702,0.000828,67766.0,67765.0,0.41734286]
[1729225256138,0.000828,67766.0,67765.0,0.43134286]
[1729225256356,0.000828,67766.0,67765.0,0.38714639]
[1729225256572,0.000828,67766.0,67765.0,0.37314639]
[1729225256978,0.000828,67766.0,67765.0,0.38714639]
[1729225259183,0.000828,67766.0,67765.0,0.38714638]
[1729225261842,0.000828,67766.0,67765.0,0.45344109]
[1729225262241,0.000828,67766.0,67765.0,0.45509509]
[1729225263055,0.000828,67766.0,67765.0,0.46100109]
[1729225263461,0.000828,67766.0,67765.0,0.39470638]
[1729225263637,0.000828,67766.0,67765.0,0.46110215]
[1729225263848,0.000828,67766.0,67765.0,0.46110214]
[1729225264476,0.000828,67766.0,67765.0,0.46110024]
[1729225266350,0.000828,67766.0,67765.0,0.52563625]
[1729225266701,0.000828,67766.0,67765.0,0.59197418]
[1729225268053,0.000828,67766.0,67765.0,0.87089807]
[1729225268284,0.000828,67766.0,67765.0,0.53270636]
[1729225268505,0.000828,67766.0,67765.0,0.70900636]
[1729225268707,0.000828,67766.0,67765.0,0.70900635]
[1729225269115,0.000828,67766.0,67765.0,0.68100635]
[1729225269338,0.000828,67766.0,67765.0,0.70900635]
[1729225269781,0.000828,67766.0,67765.0,0.66288254]
[1729225271343,0.000828,67766.0,67765.0,0.92862935]
[1729225271560,0.000828,67766.0,67765.0,0.826957]
[1729225271788,0.000828,67766.0,67765.0,0.97371295]
[1729225272220,0.000828,67766.0,67765.0,0.826957]
[1729225272451,0.001656,67768.0,67765.0,0.826957]
[1729225272452,0.001656,67768.0,67767.0,0.022]
[1729225272677,0.001656,67768.0,67767.0,0.788069]
[1729225272896,0.001656,67768.0,67767.0,0.91805167]
[1729225274458,0.001656,67768.0,67767.0,0.91690775]
[1729225274665,0.001656,67768.0,67767.0,0.93090775]
[1729225274905,0.001656,67768.0,67767.0,1.63090775]
[1729225275351,0.001656,67768.0,67767.0,1.74942465]
[1729225275577,0.001656,67768.0,67767.0,1.76342465]
[1729225275786,0.001656,67768.0,67767.0,1.77742464]
[1729225275991,0.001656,67768.0,67767.0,1.6617523]
[1729225276204,0.001656,67768.0,67767.0,1.76058008]
[1729225276646,0.001656,67768.0,67767.0,1.73258008]
[1729225276881,0.001656,67768.0,67767.0,1.75515105]
[1729225277533,0.001656,67768.0,67767.0,1.75515104]
[1729225277952,0.001656,67768.0,67767.0,1.76915104]
[1729225278174,0.001656,67768.0,67767.0,1.79465327]
[1729225278582,0.001656,67768.0,67767.0,1.09465327]
[1729225278797,0.001656,67768.0,67767.0,1.10865327]
[1729225281549,0.001656,67768.0,67767.0,1.10865326]
[1729225283072,0.001656,67768.0,67767.0,1.26865326]
[1729225283913,0.001656,67768.0,67767.0,1.26860456]
[1729225284333,0.001656,67768.0,67767.0,1.13981449]
[1729225286048,0.22396879,67786.0,67771.0,0.169555]
[1729225286250,0.22396879,67786.0,67771.0,1.54840527]
[1729225286459,1e-06,67772.0,67771.0,1.56019685]
[1729225288181,1e-06,67772.0,67771.0,1.57419685]
[1729225288402,1e-06,67772.0,67771.0,1.76289744]
[1729225288616,1e-06,67772.0,67771.0,1.74889744]
[1729225288828,1e-06,67772.0,67771.0,1.76289744]
[1729225289051,1e-06,67772.0,67771.0,1.73489744]
[1729225289484,1e-06,67772.0,67771.0,1.86456977]
[1729225289697,0.001656,67786.0,67779.0,0.58471034]
[1729225289919,0.001656,67786.0,67779.0,0.99698508]
[1729225290131,0.001656,67786.0,67779.0,1.00874393]
[1729225290408,0.001656,67786.0,67779.0,0.9205761]
[1729225290632,0.001656,67786.0,67779.0,1.00874393]
[1729225291501,0.001656,67786.0,67779.0,1.00874392]
[1729225291685,0.001656,67786.0,67779.0,0.85806442]
[1729225291919,0.001656,67786.0,67779.0,0.87206442]
[1729225292165,0.001656,67786.0,67779.0,0.88606562]
[1729225292397,0.001656,67786.0,67779.0,0.64346729]
[1729225293338,0.0908,67784.0,67779.0,0.52579495]
[1729225293575,0.0763,67783.0,67779.0,0.64146729]
[1729225294039,0.0763,67783.0,67779.0,0.65317186]
[1729225294501,0.0763,67783.0,67779.0,0.65317185]
[1729225294739,0.0763,67783.0,67779.0,0.53749951]
[1729225294977,0.0763,67783.0,67779.0,0.43749951]
[1729225295230,0.0763,67783.0,67779.0,0.42579494]
[1729225295488,0.0763,67783.0,67779.0,0.37970315]
[1729225295725,0.0763,67783.0,67779.0,0.39202007]
[1729225295961,0.0763,67783.0,67779.0,0.37802007]
[1729225296186,0.0763,67783.0,67779.0,0.46802007]
[1729225296412,0.0763,67783.0,67779.0,0.45570315]
[1729225296643,0.0763,67783.0,67779.0,0.44170315]
[1729225296887,0.0908,67784.0,67779.0,0.69704783]
[1729225297113,0.001656,67786.0,67779.0,0.74499522]
[1729225297337,0.001656,67786.0,67779.0,0.78905372]
[1729225297558,0.001656,67786.0,67779.0,0.68738138]
[1729225298099,0.001656,67786.0,67779.0,0.62932287]
[1729225298351,0.001656,67786.0,67779.0,0.68571806]
[1729225298575,0.001656,67786.0,67779.0,0.6556465]
[1729225298798,0.001656,67786.0,67779.0,0.61532287]
[1729225299256,0.001656,67786.0,67779.0,0.64332287]
[1729225299523,0.001656,67786.0,67779.0,0.64132287]
[1729225300222,0.001656,67786.0,67779.0,0.64332287]
[1729225300461,0.001656,67786.0,67779.0,0.64132287]
[1729225301626,0.001656,67786.0,67779.0,0.68539443]
[1729225302532,0.001656,67786.0,67779.0,0.68739443]
[1729225303909,0.001656,67786.0,67779.0,0.64332287]
[1729225304136,0.001656,67786.0,67779.0,0.68741657]
[1729225304345,0.001656,67786.0,67779.0,0.64132287]
[1729225304981,0.001656,67786.0,67779.0,0.52565052]
[1729225304982,0.0998,67783.0,67779.0,0.52565052]
[1729225305225,0.0998,67783.0,67779.0,0.63632286]
[1729225306337,0.0998,67783.0,67779.0,0.69536286]
[1729225306768,0.0998,67783.0,67779.0,0.69036286]
[1729225306982,0.0811,67784.0,67779.0,0.70036286]
[1729225307203,0.001656,67786.0,67779.0,0.89657527]
[1729225307419,0.001656,67786.0,67779.0,0.76852758]
[1729225307643,0.001656,67786.0,67779.0,0.70236286]
[1729225308287,0.001656,67786.0,67779.0,0.89671722]
[1729225309168,0.001656,67786.0,67779.0,0.8305525]
[1729225309380,0.001656,67786.0,67779.0,0.83055249]
[1729225309590,0.001656,67786.0,67779.0,0.82855249]
[1729225310232,0.001656,67786.0,67779.0,0.91677212]
[1729225310656,0.001656,67786.0,67779.0,0.93882703]
[1729225310856,0.001656,67786.0,67779.0,0.91686537]
[1729225311289,0.001656,67786.0,67779.0,0.93882703]
[1729225312164,0.001656,67786.0,67779.0,0.82855249]
[1729225313507,0.001656,67786.0,67779.0,0.82855248]
[1729225315513,0.001656,67786.0,67779.0,0.83055248]
[1729225316665,0.001656,67786.0,67779.0,0.82855248]
[1729225318385,0.001656,67786.0,67779.0,0.83055248]
[1729225320497,0.001656,67786.0,67779.0,0.83068789]
[1729225322097,0.001656,67786.0,67779.0,0.96338162]
[1729225323221,0.001656,67786.0,67779.0,0.96138161]
[1729225323904,0.001656,67786.0,67779.0,0.96138441]
[1729225324857,0.001656,67786.0,67779.0,0.71300049]
[1729225325092,0.001656,67786.0,67779.0,0.82867283]
[1729225326690,0.001656,67786.0,67779.0,1.05098562]
[1729225326923,0.001656,67786.0,67779.0,1.14238441]
[1729225327133,0.001656,67786.0,67779.0,1.00967283]
[1729225328012,0.001656,67786.0,67779.0,0.82867283]
[1729225328665,0.001656,67786.0,67779.0,0.8276807]
[1729225332025,0.0969,67783.0,67779.0,0.82768069]
[1729225332973,0.001656,67786.0,67779.0,0.82768069]
[1729225333694,0.001656,67786.0,67779.0,0.82770459]
[1729225336502,0.001656,67786.0,67779.0,0.82970459]
[1729225338215,0.001656,67786.0,67779.0,0.82974789]
[1729225342648,0.00065771,67786.0,67785.0,0.005]
[1729225342875,0.00065771,67786.0,67785.0,0.72188549]
[1729225343103,0.00065771,67786.0,67785.0,0.72980933]
[1729225343958,0.00065771,67786.0,67785.0,0.74380933]
[1729225344405,0.00065771,67786.0,67785.0,0.75780933]
[1729225346455,0.00065771,67786.0,67785.0,0.75980933]
[1729225346856,0.00065771,67786.0,67785.0,0.75980932]
[1729225348031,0.00065771,67786.0,67785.0,0.75764328]
[1729225348371,0.00065771,67786.0,67785.0,0.7576407]
[1729225349310,0.00065771,67786.0,67785.0,0.76917127]
[1729225349814,0.00065771,67786.0,67785.0,0.88484361]
[1729225349997,0.00065771,67786.0,67785.0,0.94387661]
[1729225350666,0.00065771,67786.0,67785.0,0.94587661]
[1729225351166,0.00065771,67786.0,67785.0,0.96846414]
[1729225352673,0.00065771,67786.0,67785.0,0.96841642]
[1729225353106,0.00065771,67786.0,67785.0,1.2858211]
[1729225353334,0.00065771,67786.0,67785.0,1.15301641]
[1729225355835,0.00065771,67786.0,67785.0,1.15735769]
[1729225356931,0.00065771,67786.0,67785.0,1.15735768]
[1729225358675,0.00065771,67786.0,67785.0,1.14335768]
[1729225358858,7.1e-07,67786.0,67785.0,1.15735768]
[1729225359072,7.1e-07,67786.0,67785.0,1.35345209]
[1729225359288,0.0115132,67793.0,67792.0,0.1218]
[1729225359503,0.0115132,67793.0,67792.0,0.90020753]
[1729225359716,0.0115132,67793.0,67792.0,1.04253789]
[1729225360183,0.0115132,67793.0,67792.0,1.04253788]
[1729225360607,0.0115132,67793.0,67792.0,1.07053788]
[1729225361019,0.0115132,67793.0,67792.0,1.05653788]
[1729225361729,0.0115132,67793.0,67792.0,1.07053788]
[1729225361947,0.0115132,67793.0,67792.0,0.94086554]
[1729225362171,0.0115132,67793.0,67792.0,0.93936546]
[1729225362744,0.0115132,67793.0,67792.0,0.62669312]
[1729225362987,0.0115132,67793.0,67792.0,0.75636546]
[1729225363474,0.0115132,67793.0,67792.0,0.75836546]
[1729225363667,0.0115132,67793.0,67792.0,0.74436545]
[1729225363916,0.0115132,67793.0,67792.0,0.75836545]
[1729225364149,0.0115132,67793.0,67792.0,0.77236545]
[1729225364382,0.0115132,67793.0,67792.0,0.93375972]
[1729225364610,0.0115132,67793.0,67792.0,0.77236545]
[1729225365081,0.0115132,67793.0,67792.0,0.65469311]
[1729225365319,0.0115132,67793.0,67792.0,0.77036545]
[1729225365788,0.0115132,67793.0,67792.0,0.77236545]
[1729225366260,0.0115132,67793.0,67792.0,0.78380822]
[1729225366519,0.0115132,67793.0,67792.0,0.78180822]
[1729225366756,0.0115132,67793.0,67792.0,0.78380822]
[1729225368356,0.0123402,67793.0,67792.0,0.78180822]
[1729225369261,0.0123402,67793.0,67792.0,0.78380822]
[1729225370612,0.0123402,67793.0,67792.0,0.84282822]
[1729225371704,0.0123402,67793.0,67792.0,0.84307477]
[1729225372130,0.0123402,67793.0,67792.0,0.84307476]
[1729225376462,0.0123402,67793.0,67792.0,0.84292559]
[1729225380441,0.0123402,67793.0,67792.0,0.84292558]
[1729225380671,0.0123402,67793.0,67792.0,0.95859792]
[1729225380901,0.0123402,67793.0,67792.0,0.9586482]
[1729225381119,0.0073402,67793.0,67792.0,0.9586482]
[1729225381353,0.0073402,67793.0,67792.0,0.84297586]
[1729225381571,2e-07,67793.0,67792.0,0.9586482]
[1729225382382,2e-07,67793.0,67792.0,1.1283482]
[1729225382825,2e-07,67793.0,67792.0,1.01267586]
[1729225383074,2e-07,67793.0,67792.0,1.26077048]
[1729225383529,2e-07,67793.0,67792.0,1.1283482]